[Event "*** Titled Tuesday Blitz"]
[Site "Chess.com"]
[Date "2020.11.24"]
[Round "3"]
[White "Training_Day"]
[Black "KaterinaMiroshnik"]
[Result "0-1"]
[WhiteElo "2346"]
[BlackElo "2527"]
[TimeControl "180+1"]
[EndTime "10:43:59 PST"]
[Termination "KaterinaMiroshnik won on time"]

1. e4 {[%clk 0:03:00.9]} 1... d6 {[%clk 0:02:59]} 2. d4 {[%clk 0:02:59.9]} 2...
Nf6 {[%clk 0:02:58.5]} 3. Nc3 {[%clk 0:03:00.1]} 3... e5 {[%clk 0:02:56.4]} 4.
dxe5 {[%clk 0:03:00.6]} 4... dxe5 {[%clk 0:02:55.1]} 5. Qxd8+ {[%clk 0:03:01.5]}
5... Kxd8 {[%clk 0:02:55.1]} 6. Bg5 {[%clk 0:03:01.4]} 6... c6 {[%clk
0:02:42.9]} 7. Nf3 {[%clk 0:02:57]} 7... Nd7 {[%clk 0:02:25.8]} 8. O-O-O {[%clk
0:02:55.9]} 8... Kc7 {[%clk 0:02:22.7]} 9. Bc4 {[%clk 0:02:52.2]} 9... Bc5
{[%clk 0:02:18.6]} 10. Bh4 {[%clk 0:02:29.5]} 10... Rf8 {[%clk 0:02:09.6]} 11.
Ng5 {[%clk 0:02:12.9]} 11... h6 {[%clk 0:01:39.7]} 12. Nxf7 {[%clk 0:02:12.6]}
12... b5 {[%clk 0:01:38.6]} 13. Bb3 {[%clk 0:02:11.9]} 13... a5 {[%clk
0:01:35.6]} 14. Bg3 {[%clk 0:01:41.7]} 14... Nh5 {[%clk 0:01:30.2]} 15. Bxe5+
{[%clk 0:00:35.5]} 15... Nxe5 {[%clk 0:01:05.4]} 16. Nxe5 {[%clk 0:00:36.4]}
16... a4 {[%clk 0:01:05.5]} 17. Bf7 {[%clk 0:00:30.9]} 17... Nf4 {[%clk
0:01:05.4]} 18. g3 {[%clk 0:00:28.7]} 18... Nh3 {[%clk 0:01:04.8]} 19. Rd2
{[%clk 0:00:11.5]} 19... Nxf2 {[%clk 0:01:01.5]} 20. Rf1 {[%clk 0:00:11.3]}
20... b4 {[%clk 0:01:00.1]} 21. Rdxf2 {[%clk 0:00:03.2]} 21... bxc3 {[%clk
0:01:00]} 22. bxc3 {[%clk 0:00:02.6]} 22... Bxf2 {[%clk 0:00:56.3]} 23. Rxf2
{[%clk 0:00:03.5]} 23... Be6 {[%clk 0:00:52.9]} 24. Rf4 {[%clk 0:00:03]} 24...
Kd6 {[%clk 0:00:51.8]} 25. Bxe6 {[%clk 0:00:02.3]} 25... Kxe6 {[%clk 0:00:49.4]}
26. Nc4 {[%clk 0:00:01.1]} 26... g5 {[%clk 0:00:46.4]} 0-1

[Event "*** Titled Tuesday Blitz"]
[Site "Chess.com"]
[Date "2020.11.24"]
[Round "3"]
[White "TheCairnTerrier"]
[Black "2nd_life"]
[Result "0-1"]
[WhiteElo "2169"]
[BlackElo "2488"]
[TimeControl "180+1"]
[EndTime "10:44:00 PST"]
[Termination "2nd_life won by resignation"]

1. e4 {[%clk 0:03:00.9]} 1... e5 {[%clk 0:02:59.4]} 2. Nf3 {[%clk 0:03:00.9]}
2... Nc6 {[%clk 0:02:59]} 3. Bc4 {[%clk 0:03:01]} 3... Bc5 {[%clk 0:02:58.8]} 4.
c3 {[%clk 0:03:00.9]} 4... Nf6 {[%clk 0:02:59]} 5. d3 {[%clk 0:03:01.1]} 5... a6
{[%clk 0:02:59]} 6. Bb3 {[%clk 0:02:54.2]} 6... Ba7 {[%clk 0:02:58.6]} 7. O-O
{[%clk 0:02:53.7]} 7... O-O {[%clk 0:02:58.1]} 8. Re1 {[%clk 0:02:48.6]} 8... h6
{[%clk 0:02:42.4]} 9. Nbd2 {[%clk 0:02:46.7]} 9... d6 {[%clk 0:02:39.1]} 10. Nf1
{[%clk 0:02:45.7]} 10... Ng4 {[%clk 0:02:32.1]} 11. Re2 {[%clk 0:02:39.1]} 11...
Na5 {[%clk 0:02:20.7]} 12. Bc2 {[%clk 0:02:38.1]} 12... f5 {[%clk 0:02:20.1]}
13. h3 {[%clk 0:02:24.1]} 13... Nf6 {[%clk 0:02:19]} 14. exf5 {[%clk 0:02:12.6]}
14... Bxf5 {[%clk 0:02:18.3]} 15. Ng3 {[%clk 0:02:10.9]} 15... Bh7 {[%clk
0:02:14.1]} 16. d4 {[%clk 0:02:06]} 16... Bxc2 {[%clk 0:02:05.7]} 17. Qxc2
{[%clk 0:02:05.2]} 17... exd4 {[%clk 0:02:05.7]} 18. Nxd4 {[%clk 0:02:00.5]}
18... Bxd4 {[%clk 0:01:53.6]} 19. cxd4 {[%clk 0:01:59.4]} 19... Nc6 {[%clk
0:01:54.1]} 20. Bd2 {[%clk 0:01:43.2]} 20... d5 {[%clk 0:01:51.2]} 21. Qd3
{[%clk 0:01:18.1]} 21... Qd7 {[%clk 0:01:47.3]} 22. Rae1 {[%clk 0:01:06.5]}
22... Rae8 {[%clk 0:01:46.3]} 23. f3 {[%clk 0:00:30.1]} 23... Rxe2 {[%clk
0:01:43.7]} 24. Rxe2 {[%clk 0:00:28.4]} 24... Re8 {[%clk 0:01:43.1]} 25. Rxe8+
{[%clk 0:00:28.3]} 25... Qxe8 {[%clk 0:01:42.6]} 26. Nf5 {[%clk 0:00:27.6]}
26... Ne7 {[%clk 0:01:14.5]} 27. Ng3 {[%clk 0:00:11.1]} 27... Qa4 {[%clk
0:01:08.3]} 28. Bf4 {[%clk 0:00:06.3]} 28... Qxa2 {[%clk 0:01:03.7]} 29. Bxc7
{[%clk 0:00:06.3]} 29... Qxb2 {[%clk 0:01:02.2]} 30. Kh2 {[%clk 0:00:05]} 30...
Qb5 {[%clk 0:00:53.6]} 31. Be5 {[%clk 0:00:05]} 0-1

[Event "*** Titled Tuesday Blitz"]
[Site "Chess.com"]
[Date "2020.11.24"]
[Round "3"]
[White "Fy_Rakotomaharo"]
[Black "Nemsko"]
[Result "1-0"]
[WhiteElo "2699"]
[BlackElo "2355"]
[TimeControl "180+1"]
[EndTime "10:44:03 PST"]
[Termination "Fy_Rakotomaharo won by checkmate"]

1. d4 {[%clk 0:03:00.9]} 1... Nf6 {[%clk 0:02:59.5]} 2. c4 {[%clk 0:03:01.3]}
2... e6 {[%clk 0:02:59.1]} 3. Nc3 {[%clk 0:03:00.4]} 3... Bb4 {[%clk 0:02:57.8]}
4. e3 {[%clk 0:03:00.9]} 4... O-O {[%clk 0:02:56.6]} 5. Bd2 {[%clk 0:03:00]}
5... d5 {[%clk 0:02:56.5]} 6. Nf3 {[%clk 0:02:58.6]} 6... b6 {[%clk 0:02:54.3]}
7. cxd5 {[%clk 0:02:57.5]} 7... exd5 {[%clk 0:02:54.4]} 8. Rc1 {[%clk
0:02:58.2]} 8... c6 {[%clk 0:02:43]} 9. Bd3 {[%clk 0:02:56.3]} 9... Be6 {[%clk
0:02:28.2]} 10. O-O {[%clk 0:02:52.3]} 10... Nbd7 {[%clk 0:02:22.9]} 11. Bb1
{[%clk 0:02:44.3]} 11... Re8 {[%clk 0:02:15]} 12. Ne5 {[%clk 0:02:43.8]} 12...
Rc8 {[%clk 0:02:10.3]} 13. f4 {[%clk 0:02:42.8]} 13... Bxc3 {[%clk 0:02:05.7]}
14. Bxc3 {[%clk 0:02:37]} 14... Nf8 {[%clk 0:01:52.7]} 15. Be1 {[%clk
0:02:19.6]} 15... Ne4 {[%clk 0:01:31]} 16. f5 {[%clk 0:02:15.2]} 16... Bd7
{[%clk 0:01:30.8]} 17. Bxe4 {[%clk 0:02:15.3]} 17... dxe4 {[%clk 0:01:31.2]} 18.
f6 {[%clk 0:02:15.8]} 18... g6 {[%clk 0:00:57]} 19. Qc2 {[%clk 0:01:59.4]} 19...
c5 {[%clk 0:00:40]} 20. Qxe4 {[%clk 0:01:54.2]} 20... cxd4 {[%clk 0:00:40.1]}
21. Rxc8 {[%clk 0:01:52.5]} 21... Qxc8 {[%clk 0:00:39.5]} 22. exd4 {[%clk
0:01:50.1]} 22... Bf5 {[%clk 0:00:34.8]} 23. Qh4 {[%clk 0:01:42.1]} 23... Qd8
{[%clk 0:00:27.3]} 24. Bc3 {[%clk 0:01:12.4]} 24... Qd5 {[%clk 0:00:22.8]} 25.
g4 {[%clk 0:00:53.2]} 25... Be4 {[%clk 0:00:20.6]} 26. Qh6 {[%clk 0:00:43.8]}
26... Ne6 {[%clk 0:00:20]} 27. Nxf7 {[%clk 0:00:44.2]} 27... Bh1 {[%clk
0:00:14.4]} 28. Rf2 {[%clk 0:00:44.2]} 28... Kxf7 {[%clk 0:00:12.8]} 29. Qxh7+
{[%clk 0:00:43.1]} 29... Kf8 {[%clk 0:00:13.3]} 30. Bb4+ {[%clk 0:00:37.3]}
30... Nc5 {[%clk 0:00:09.1]} 31. Qg7# {[%clk 0:00:37.4]} 1-0

[Event "*** Titled Tuesday Blitz"]
[Site "Chess.com"]
[Date "2020.11.24"]
[Round "3"]
[White "MarcoRiehle"]
[Black "redbaron8888"]
[Result "0-1"]
[WhiteElo "2697"]
[BlackElo "2535"]
[TimeControl "180+1"]
[EndTime "10:44:05 PST"]
[Termination "redbaron8888 won by resignation"]

1. e4 {[%clk 0:03:00.9]} 1... e6 {[%clk 0:02:59.8]} 2. c4 {[%clk 0:03:00.6]}
2... d5 {[%clk 0:02:59.5]} 3. cxd5 {[%clk 0:03:01.5]} 3... exd5 {[%clk
0:03:00.1]} 4. Qb3 {[%clk 0:03:00.2]} 4... dxe4 {[%clk 0:02:58]} 5. Bc4 {[%clk
0:02:59.5]} 5... Qd7 {[%clk 0:02:44.8]} 6. Nh3 {[%clk 0:02:58.9]} 6... Nc6
{[%clk 0:02:41.4]} 7. Ng5 {[%clk 0:02:57.8]} 7... Ne5 {[%clk 0:02:41]} 8. d3
{[%clk 0:02:57.4]} 8... Nf6 {[%clk 0:02:28.9]} 9. O-O {[%clk 0:02:55.8]} 9...
Nxc4 {[%clk 0:01:56.1]} 10. Qxc4 {[%clk 0:02:55.2]} 10... Qd5 {[%clk 0:01:33]}
11. Nxe4 {[%clk 0:02:23.9]} 11... Qxc4 {[%clk 0:01:30.6]} 12. Nxf6+ {[%clk
0:02:23.6]} 12... gxf6 {[%clk 0:01:31.5]} 13. dxc4 {[%clk 0:02:24.1]} 13... Be6
{[%clk 0:01:32.2]} 14. b3 {[%clk 0:02:23.7]} 14... Rg8 {[%clk 0:01:13.1]} 15.
Nc3 {[%clk 0:02:20.6]} 15... O-O-O {[%clk 0:01:10.4]} 16. Bf4 {[%clk 0:02:15.4]}
16... f5 {[%clk 0:00:57]} 17. Rad1 {[%clk 0:01:58.7]} 17... Bc5 {[%clk
0:00:53.7]} 18. Rxd8+ {[%clk 0:01:49.9]} 18... Rxd8 {[%clk 0:00:53.1]} 19. Rd1
{[%clk 0:01:50.5]} 19... Rxd1+ {[%clk 0:00:52.4]} 20. Nxd1 {[%clk 0:01:51.4]}
20... c6 {[%clk 0:00:50.6]} 21. Be3 {[%clk 0:01:50.2]} 21... Bxe3 {[%clk
0:00:46.9]} 22. Nxe3 {[%clk 0:01:51.1]} 22... f4 {[%clk 0:00:46.2]} 23. Nd1
{[%clk 0:01:49.9]} 23... Kc7 {[%clk 0:00:42.1]} 24. Nc3 {[%clk 0:01:44.7]} 24...
Kd6 {[%clk 0:00:41.2]} 25. Kf1 {[%clk 0:01:37.7]} 25... Kc5 {[%clk 0:00:39.5]}
26. Ke2 {[%clk 0:01:32.1]} 26... Kb4 {[%clk 0:00:33.1]} 27. Kd2 {[%clk
0:01:30.6]} 27... Bf5 {[%clk 0:00:26.5]} 28. Ne2 {[%clk 0:01:22.5]} 28... Bb1
{[%clk 0:00:25.3]} 29. Nd4 {[%clk 0:01:14.6]} 29... Bxa2 {[%clk 0:00:23.9]} 30.
Ne2 {[%clk 0:01:03.6]} 30... Bxb3 {[%clk 0:00:22.5]} 31. Nxf4 {[%clk 0:01:03.7]}
31... a5 {[%clk 0:00:21.5]} 32. Kc1 {[%clk 0:01:03.1]} 32... Bxc4 {[%clk
0:00:19.4]} 33. Nh5 {[%clk 0:00:58.8]} 33... a4 {[%clk 0:00:19.1]} 34. Nf6
{[%clk 0:00:58.6]} 34... a3 {[%clk 0:00:19]} 35. g4 {[%clk 0:00:47.6]} 35... Bd3
{[%clk 0:00:18.7]} 36. Nd7 {[%clk 0:00:46.3]} 36... Kc3 {[%clk 0:00:17.8]} 0-1

[Event "*** Titled Tuesday Blitz"]
[Site "Chess.com"]
[Date "2020.11.24"]
[Round "3"]
[White "akanga001"]
[Black "Cambek64"]
[Result "1/2-1/2"]
[WhiteElo "1953"]
[BlackElo "2288"]
[TimeControl "180+1"]
[EndTime "10:44:06 PST"]
[Termination "Game drawn by agreement"]

1. d4 {[%clk 0:03:00.9]} 1... d5 {[%clk 0:02:40.4]} 2. c4 {[%clk 0:02:59.6]}
2... dxc4 {[%clk 0:02:39.9]} 3. e3 {[%clk 0:02:58.7]} 3... a6 {[%clk 0:02:40.3]}
4. Bxc4 {[%clk 0:02:58.1]} 4... e6 {[%clk 0:02:39.9]} 5. Nf3 {[%clk 0:02:55.9]}
5... b5 {[%clk 0:02:38.9]} 6. Bb3 {[%clk 0:02:53.2]} 6... Bb7 {[%clk 0:02:39.4]}
7. O-O {[%clk 0:02:52.2]} 7... Nf6 {[%clk 0:02:40]} 8. Ne5 {[%clk 0:02:51.9]}
8... c5 {[%clk 0:02:38]} 9. Nc3 {[%clk 0:02:48.2]} 9... cxd4 {[%clk 0:02:37.3]}
10. exd4 {[%clk 0:02:47.2]} 10... Nbd7 {[%clk 0:02:29.2]} 11. Bg5 {[%clk
0:02:41.1]} 11... Be7 {[%clk 0:02:26]} 12. Nxd7 {[%clk 0:02:15.8]} 12... Qxd7
{[%clk 0:02:24.6]} 13. Bxf6 {[%clk 0:02:02.4]} 13... Bxf6 {[%clk 0:02:20.7]} 14.
d5 {[%clk 0:02:02.7]} 14... exd5 {[%clk 0:02:19.3]} 15. Nxd5 {[%clk 0:02:00.5]}
15... Bxd5 {[%clk 0:02:16.2]} 16. Bxd5 {[%clk 0:01:54.8]} 16... Rd8 {[%clk
0:02:16.2]} 17. Re1+ {[%clk 0:01:52.6]} 17... Kf8 {[%clk 0:02:16.6]} 18. Bf3
{[%clk 0:01:41.8]} 18... Bxb2 {[%clk 0:02:11.4]} 19. Qxd7 {[%clk 0:01:28.7]}
19... Rxd7 {[%clk 0:02:09.9]} 20. Bc6 {[%clk 0:01:28.9]} 20... Rd8 {[%clk
0:02:01.5]} 21. Rad1 {[%clk 0:01:24.6]} 21... Rxd1 {[%clk 0:01:57]} 22. Rxd1
{[%clk 0:01:22.3]} 22... Ke7 {[%clk 0:01:57.3]} 23. Rd7+ {[%clk 0:01:17.5]}
23... Kf6 {[%clk 0:01:27.6]} 24. Bd5 {[%clk 0:01:13.8]} 24... Rc8 {[%clk
0:01:18.5]} 25. g3 {[%clk 0:01:08.9]} 25... Rc2 {[%clk 0:01:10.9]} 26. Rxf7+
{[%clk 0:01:05.8]} 26... Kg6 {[%clk 0:01:11.1]} 27. Ra7 {[%clk 0:00:55]} 27...
Rxf2 {[%clk 0:01:02.4]} 28. Rxa6+ {[%clk 0:00:54.5]} 28... Rf6 {[%clk
0:01:01.3]} 29. Be4+ {[%clk 0:00:49.7]} 29... Kh6 {[%clk 0:00:57.5]} 30. Rxf6+
{[%clk 0:00:37.9]} 30... Bxf6 {[%clk 0:00:54.6]} 31. Kf2 {[%clk 0:00:36.8]}
31... b4 {[%clk 0:00:53.8]} 32. Bd5 {[%clk 0:00:35.1]} 32... Bd4+ {[%clk
0:00:53.4]} 33. Kf3 {[%clk 0:00:35.1]} 33... Kg5 {[%clk 0:00:53.2]} 34. h4+
{[%clk 0:00:33.6]} 34... Kf6 {[%clk 0:00:53.5]} 35. g4 {[%clk 0:00:32.4]} 35...
h6 {[%clk 0:00:51.6]} 36. h5 {[%clk 0:00:31.2]} 36... Ke5 {[%clk 0:00:50.3]} 37.
Bb3 {[%clk 0:00:29.3]} 37... Bb2 {[%clk 0:00:48.7]} 38. Bc4 {[%clk 0:00:28.1]}
1/2-1/2

[Event "*** Titled Tuesday Blitz"]
[Site "Chess.com"]
[Date "2020.11.24"]
[Round "3"]
[White "Zhani-Z"]
[Black "tylityli"]
[Result "1-0"]
[WhiteElo "2521"]
[BlackElo "2337"]
[TimeControl "180+1"]
[EndTime "10:44:10 PST"]
[Termination "Zhani-Z won by resignation"]

1. e4 {[%clk 0:03:00.9]} 1... e5 {[%clk 0:02:59.2]} 2. Nf3 {[%clk 0:03:00.2]}
2... Nc6 {[%clk 0:02:57.5]} 3. Nc3 {[%clk 0:03:00]} 3... Nf6 {[%clk 0:02:54.4]}
4. Bb5 {[%clk 0:02:59.6]} 4... Bd6 {[%clk 0:02:53.8]} 5. d3 {[%clk 0:02:57.6]}
5... a6 {[%clk 0:02:52.7]} 6. Ba4 {[%clk 0:02:56]} 6... b5 {[%clk 0:02:50.8]} 7.
Bb3 {[%clk 0:02:55.3]} 7... h6 {[%clk 0:02:50.2]} 8. h3 {[%clk 0:02:51.5]} 8...
Na5 {[%clk 0:02:48.7]} 9. Ne2 {[%clk 0:02:25.9]} 9... Nxb3 {[%clk 0:02:32.3]}
10. axb3 {[%clk 0:02:25.2]} 10... Bb7 {[%clk 0:02:14.7]} 11. Ng3 {[%clk
0:02:22.5]} 11... g6 {[%clk 0:02:06.4]} 12. O-O {[%clk 0:02:16.7]} 12... Kf8
{[%clk 0:02:00.4]} 13. d4 {[%clk 0:02:15.7]} 13... Nxe4 {[%clk 0:01:49.3]} 14.
Nxe5 {[%clk 0:02:11.5]} 14... Kg7 {[%clk 0:01:42.8]} 15. Qf3 {[%clk 0:01:30.2]}
15... f5 {[%clk 0:01:28.3]} 16. c4 {[%clk 0:01:05.2]} 16... Qf6 {[%clk
0:01:06.2]} 17. Bf4 {[%clk 0:00:54.7]} 17... Nd2 {[%clk 0:00:57.2]} 18. Qxb7
{[%clk 0:00:43.3]} 18... Nxf1 {[%clk 0:00:57]} 19. Rxf1 {[%clk 0:00:40.4]} 19...
Rhe8 {[%clk 0:00:41.4]} 20. c5 {[%clk 0:00:37.1]} 20... Rab8 {[%clk 0:00:31.5]}
21. Qd5 {[%clk 0:00:33.8]} 21... Bf8 {[%clk 0:00:23.4]} 22. Nxd7 {[%clk
0:00:32]} 22... Qd8 {[%clk 0:00:19.6]} 23. Be5+ {[%clk 0:00:28.6]} 23... Kh7
{[%clk 0:00:14.7]} 24. Qf7+ {[%clk 0:00:27.8]} 1-0

[Event "*** Titled Tuesday Blitz"]
[Site "Chess.com"]
[Date "2020.11.24"]
[Round "3"]
[White "Unknown_IM"]
[Black "onetowin"]
[Result "1-0"]
[WhiteElo "2388"]
[BlackElo "2111"]
[TimeControl "180+1"]
[EndTime "10:44:15 PST"]
[Termination "Unknown_IM won by resignation"]

1. e4 {[%clk 0:03:00.9]} 1... c5 {[%clk 0:02:56.9]} 2. Nf3 {[%clk 0:02:59.9]}
2... e6 {[%clk 0:02:56.7]} 3. c3 {[%clk 0:02:59.7]} 3... Nf6 {[%clk 0:02:55]} 4.
e5 {[%clk 0:03:00]} 4... Nd5 {[%clk 0:02:53]} 5. d4 {[%clk 0:02:59.7]} 5... cxd4
{[%clk 0:02:52.5]} 6. cxd4 {[%clk 0:02:59.4]} 6... d6 {[%clk 0:02:52.8]} 7. a3
{[%clk 0:02:59.1]} 7... Nc6 {[%clk 0:02:52.1]} 8. Bd3 {[%clk 0:02:57]} 8... dxe5
{[%clk 0:02:50.9]} 9. dxe5 {[%clk 0:02:56.6]} 9... Be7 {[%clk 0:02:51.1]} 10.
O-O {[%clk 0:02:56]} 10... O-O {[%clk 0:02:49.6]} 11. Qc2 {[%clk 0:02:54.8]}
11... h6 {[%clk 0:02:47]} 12. Qe2 {[%clk 0:02:54]} 12... Bd7 {[%clk 0:02:41.2]}
13. Qe4 {[%clk 0:02:52.5]} 13... f5 {[%clk 0:02:40.1]} 14. exf6 {[%clk
0:02:49.1]} 14... Nxf6 {[%clk 0:02:39.8]} 15. Qe2 {[%clk 0:02:48.8]} 15... Qc7
{[%clk 0:02:36.4]} 16. Nc3 {[%clk 0:02:47.9]} 16... a6 {[%clk 0:02:32.4]} 17. h3
{[%clk 0:02:45.2]} 17... Bd6 {[%clk 0:02:25.3]} 18. Be3 {[%clk 0:02:43.9]} 18...
Rae8 {[%clk 0:02:20.5]} 19. Rfd1 {[%clk 0:02:39.9]} 19... e5 {[%clk 0:02:13.4]}
20. Ne4 {[%clk 0:02:38.8]} 20... Nxe4 {[%clk 0:01:57.6]} 21. Bxe4 {[%clk
0:02:36.9]} 21... Bf5 {[%clk 0:01:52.4]} 22. Qc4+ {[%clk 0:02:14]} 22... Kh8
{[%clk 0:01:49.7]} 23. Bxc6 {[%clk 0:02:12.6]} 23... bxc6 {[%clk 0:01:46.8]} 24.
Rac1 {[%clk 0:02:02]} 24... Bxh3 {[%clk 0:01:31.1]} 25. Nh4 {[%clk 0:01:53.6]}
25... Bf5 {[%clk 0:01:26.4]} 26. Nxf5 {[%clk 0:01:52.3]} 26... Rxf5 {[%clk
0:01:25]} 27. Qxc6 {[%clk 0:01:52.4]} 27... Qxc6 {[%clk 0:01:20]} 28. Rxc6
{[%clk 0:01:53.3]} 28... Bf8 {[%clk 0:01:17.1]} 29. Rxa6 {[%clk 0:01:51.2]}
29... e4 {[%clk 0:01:13]} 30. g3 {[%clk 0:01:44.7]} 30... Rb5 {[%clk 0:01:11.7]}
31. b4 {[%clk 0:01:43.7]} 31... Rc8 {[%clk 0:01:09.7]} 32. Re6 {[%clk
0:01:37.7]} 32... Ra8 {[%clk 0:01:02.4]} 33. Rxe4 {[%clk 0:01:35.4]} 33... Rxa3
{[%clk 0:00:58.1]} 34. Re8 {[%clk 0:01:34.5]} 34... Rf5 {[%clk 0:00:52.6]} 35.
Rdd8 {[%clk 0:01:32.3]} 35... Kg8 {[%clk 0:00:41]} 36. b5 {[%clk 0:01:20]} 36...
Rb3 {[%clk 0:00:33.9]} 37. b6 {[%clk 0:01:15.2]} 37... g5 {[%clk 0:00:26.9]} 38.
g4 {[%clk 0:01:01.1]} 38... Rf7 {[%clk 0:00:23.9]} 39. Bc5 {[%clk 0:01:00.2]}
39... Rb1+ {[%clk 0:00:19.1]} 40. Kg2 {[%clk 0:00:59.3]} 1-0

[Event "*** Titled Tuesday Blitz"]
[Site "Chess.com"]
[Date "2020.11.24"]
[Round "3"]
[White "witcher8"]
[Black "Grineva_Marianna"]
[Result "1-0"]
[WhiteElo "2436"]
[BlackElo "2203"]
[TimeControl "180+1"]
[EndTime "10:44:15 PST"]
[Termination "witcher8 won on time"]

1. e4 {[%clk 0:03:00.9]} 1... c5 {[%clk 0:02:58.9]} 2. Nc3 {[%clk 0:03:00.4]}
2... a6 {[%clk 0:02:58.4]} 3. a4 {[%clk 0:03:00.2]} 3... b6 {[%clk 0:02:57.6]}
4. g3 {[%clk 0:02:59.1]} 4... Bb7 {[%clk 0:02:57.6]} 5. Bg2 {[%clk 0:02:59.7]}
5... e6 {[%clk 0:02:57.2]} 6. f4 {[%clk 0:02:59.9]} 6... h5 {[%clk 0:02:57.4]}
7. Nf3 {[%clk 0:02:59.4]} 7... Be7 {[%clk 0:02:57.9]} 8. h3 {[%clk 0:02:57.4]}
8... Nh6 {[%clk 0:02:56.3]} 9. d3 {[%clk 0:02:55.8]} 9... f6 {[%clk 0:02:56.2]}
10. O-O {[%clk 0:02:53.4]} 10... Nf7 {[%clk 0:02:55.9]} 11. Be3 {[%clk
0:02:42.9]} 11... d5 {[%clk 0:02:51.4]} 12. exd5 {[%clk 0:02:41.1]} 12... exd5
{[%clk 0:02:52.3]} 13. d4 {[%clk 0:02:41.4]} 13... Nd7 {[%clk 0:02:50.1]} 14.
Nh4 {[%clk 0:02:33.9]} 14... cxd4 {[%clk 0:02:13.9]} 15. Bxd4 {[%clk 0:02:32.5]}
15... Nc5 {[%clk 0:02:12]} 16. Ng6 {[%clk 0:02:23]} 16... Rh6 {[%clk 0:02:10.5]}
17. Nxe7 {[%clk 0:02:15.7]} 17... Kxe7 {[%clk 0:02:08.4]} 18. Re1+ {[%clk
0:01:52.7]} 18... Kf8 {[%clk 0:02:03.8]} 19. b4 {[%clk 0:01:52.3]} 19... Nd7
{[%clk 0:01:53]} 20. Nxd5 {[%clk 0:01:49.9]} 20... Rc8 {[%clk 0:01:29.7]} 21. c3
{[%clk 0:01:48.4]} 21... Rg6 {[%clk 0:01:22]} 22. Kh2 {[%clk 0:01:40]} 22... h4
{[%clk 0:01:18.6]} 23. g4 {[%clk 0:01:33.2]} 23... Bc6 {[%clk 0:01:00.3]} 24.
Qd3 {[%clk 0:01:23.5]} 24... Rh6 {[%clk 0:00:40.9]} 25. Rad1 {[%clk 0:01:17.5]}
25... Bxa4 {[%clk 0:00:28]} 26. Rd2 {[%clk 0:01:17.6]} 26... Bb5 {[%clk
0:00:26]} 27. Qe3 {[%clk 0:01:17.6]} 27... Nb8 {[%clk 0:00:16.2]} 28. Nxb6
{[%clk 0:01:07.8]} 28... Qe8 {[%clk 0:00:10.7]} 29. Nxc8 {[%clk 0:01:05.5]}
29... Qxc8 {[%clk 0:00:07.8]} 30. Qe7+ {[%clk 0:01:05.2]} 30... Kg8 {[%clk
0:00:07.9]} 31. Bd5 {[%clk 0:01:03]} 31... Kh7 {[%clk 0:00:04.5]} 32. Bxf7
{[%clk 0:01:00.3]} 32... Nc6 {[%clk 0:00:04.2]} 33. Qe4+ {[%clk 0:00:56.5]}
33... Kh8 {[%clk 0:00:03.5]} 34. Qe8+ {[%clk 0:00:54.7]} 34... Qxe8 {[%clk
0:00:03.4]} 35. Rxe8+ {[%clk 0:00:55.6]} 35... Kh7 {[%clk 0:00:04.3]} 36. Be3
{[%clk 0:00:52]} 1-0

[Event "*** Titled Tuesday Blitz"]
[Site "Chess.com"]
[Date "2020.11.24"]
[Round "3"]
[White "IceBelka"]
[Black "RamyresCoelho"]
[Result "0-1"]
[WhiteElo "2316"]
[BlackElo "2097"]
[TimeControl "180+1"]
[EndTime "10:44:15 PST"]
[Termination "RamyresCoelho won by checkmate"]

1. e4 {[%clk 0:03:00.9]} 1... c5 {[%clk 0:02:59.8]} 2. Nf3 {[%clk 0:02:59.4]}
2... d6 {[%clk 0:03:00]} 3. d4 {[%clk 0:03:00]} 3... cxd4 {[%clk 0:03:00.9]} 4.
Nxd4 {[%clk 0:03:00.7]} 4... Nf6 {[%clk 0:03:00.8]} 5. Nc3 {[%clk 0:03:00]} 5...
a6 {[%clk 0:03:00.8]} 6. Be3 {[%clk 0:02:51.7]} 6... e6 {[%clk 0:03:00.5]} 7. f3
{[%clk 0:02:49.9]} 7... b5 {[%clk 0:03:00]} 8. Qd2 {[%clk 0:02:48.2]} 8... Bb7
{[%clk 0:03:00.3]} 9. a3 {[%clk 0:02:46.3]} 9... Nbd7 {[%clk 0:03:00.5]} 10. g4
{[%clk 0:02:44.5]} 10... h6 {[%clk 0:02:59.6]} 11. h4 {[%clk 0:02:40.2]} 11...
Rc8 {[%clk 0:02:57.6]} 12. Bg2 {[%clk 0:02:34.5]} 12... Ne5 {[%clk 0:02:54.7]}
13. Bf1 {[%clk 0:02:23.8]} 13... d5 {[%clk 0:02:40.4]} 14. exd5 {[%clk
0:01:44.8]} 14... Nxd5 {[%clk 0:02:41.3]} 15. Nxd5 {[%clk 0:01:38.1]} 15... Qxd5
{[%clk 0:02:37.8]} 16. Be2 {[%clk 0:01:24.9]} 16... Be7 {[%clk 0:02:25.4]} 17.
Rh3 {[%clk 0:01:11.8]} 17... O-O {[%clk 0:01:57.7]} 18. Nb3 {[%clk 0:01:07.5]}
18... Qxd2+ {[%clk 0:01:48.2]} 19. Kxd2 {[%clk 0:00:56.7]} 19... Rfd8+ {[%clk
0:01:46.3]} 20. Kc1 {[%clk 0:00:56.7]} 20... Bd5 {[%clk 0:01:38.8]} 21. Nd2
{[%clk 0:00:54.6]} 21... Rc6 {[%clk 0:01:25.9]} 22. f4 {[%clk 0:00:54.3]} 22...
Nc4 {[%clk 0:01:20.8]} 23. Nxc4 {[%clk 0:00:23.4]} 23... bxc4 {[%clk 0:01:21.7]}
24. c3 {[%clk 0:00:18.2]} 24... Be4 {[%clk 0:01:20.2]} 25. g5 {[%clk 0:00:18.3]}
25... Bf5 {[%clk 0:01:19]} 26. Rh1 {[%clk 0:00:17.7]} 26... Be4 {[%clk 0:01:14]}
27. Rg1 {[%clk 0:00:17.2]} 27... hxg5 {[%clk 0:01:08.8]} 28. hxg5 {[%clk
0:00:18.1]} 28... Rd7 {[%clk 0:00:59]} 29. a4 {[%clk 0:00:18.2]} 29... Rc8
{[%clk 0:00:56.6]} 30. a5 {[%clk 0:00:18.3]} 30... Bd3 {[%clk 0:00:53.6]} 31.
Bf3 {[%clk 0:00:16.4]} 31... Rb8 {[%clk 0:00:49.4]} 32. Bd4 {[%clk 0:00:16.1]}
32... Rxd4 {[%clk 0:00:42.6]} 33. cxd4 {[%clk 0:00:15.9]} 33... Bd6 {[%clk
0:00:43.5]} 34. Kd2 {[%clk 0:00:12.8]} 34... Bxf4+ {[%clk 0:00:43]} 35. Kc3
{[%clk 0:00:13.1]} 35... Rb3# {[%clk 0:00:42.5]} 0-1